bitfinex-derivatives/quotes_ETHF0:USTF0_20250911
["timestamp","ask_amount","ask_price","bid_price","bid_amount"]
[1757631398208,0.74248201,4464.0,4463.9,3.23854346]
[1757631398919,8.38859738,4464.0,4462.5,4.91477904]
[1757631399218,0.0390063,4464.1,4462.5,0.1253]
[1757631399219,3.2078,4462.6,4462.5,0.1253]
[1757631399517,0.65413283,4462.6,4462.5,0.5371]
[1757631399821,4.117,4462.6,4462.5,0.5371]
[1757631400004,0.65945235,4462.6,4462.5,0.5371]
[1757631400811,0.65945235,4462.6,4462.5,0.831]
[1757631401217,0.117,4462.6,4462.5,0.831]
[1757631409921,3.3248,4462.6,4462.5,0.831]
[1757631410621,3.3248,4462.6,4462.5,0.6294]
[1757631411823,3.3248,4462.6,4462.5,0.831]
[1757631412814,3.2078,4462.6,4462.5,0.831]
[1757631413015,3.3248,4462.6,4462.5,0.831]
[1757631413729,3.3248,4462.6,4462.5,0.4192]
[1757631414826,3.3248,4462.6,4462.5,0.6294]
[1757631419821,3.3248,4462.6,4462.5,0.8387]
[1757631424422,3.3248,4462.6,4462.5,0.4192]
[1757631424731,0.117,4462.1,4461.5,3.3331]
[1757631425028,3.2078,4462.1,4462.0,0.1167]
[1757631425226,3.4398,4462.1,4462.0,0.1167]
[1757631425430,3.5568,4462.1,4461.5,0.1253]
[1757631425627,3.3248,4461.6,4461.0,0.335]
[1757631425925,0.117,4461.2,4461.0,0.335]
[1757631426131,0.232,4461.1,4461.0,0.335]
[1757631426720,0.349,4461.1,4461.0,0.6571]
[1757631426920,0.349,4461.1,4461.0,0.8664]
[1757631427120,0.232,4461.1,4461.0,0.8664]
[1757631431228,0.349,4461.1,4461.0,0.6571]
[1757631431431,0.349,4461.1,4461.0,0.8664]
[1757631432137,0.232,4461.1,4461.0,0.8664]
[1757631432524,3.2078,4461.6,4461.5,0.6485]
[1757631432727,3.98874135,4461.6,4461.5,0.6485]
[1757631432933,4.10574135,4461.6,4461.5,0.6485]
[1757631433728,0.3972,4461.1,4461.0,0.1253]
[1757631433929,0.126,4461.0,4460.0,3.265]
[1757631434139,0.117,4460.8,4460.0,3.265]
[1757631434436,0.232,4460.7,4460.6,0.419]
[1757631434734,0.4338,4460.7,4460.6,0.419]
[1757631435732,0.9298,4460.7,4460.6,0.7411]
[1757631435936,0.9298,4460.7,4460.6,0.5318]
[1757631436342,0.9298,4460.7,4460.6,0.7411]
[1757631437738,0.9298,4460.7,4460.6,0.2097]
[1757631438430,0.3006,4460.4,4460.1,0.3221]
[1757631438635,0.6978,4460.2,4460.1,0.5318]
[1757631439032,0.6978,4460.2,4460.1,0.7411]
[1757631443741,0.3972,4459.9,4459.5,0.1167]
[1757631443944,0.6978,4459.6,4459.5,0.5357]
[1757631444348,0.6978,4459.6,4459.5,0.8578]
[1757631446247,0.496,4459.5,4459.4,0.7411]
[1757631446549,0.9298,4459.5,4459.4,0.7411]
[1757631447841,1.0468,4459.5,4459.4,0.5318]
[1757631448044,1.1639,4459.5,4459.4,0.2097]
[1757631448748,1.1639,4459.5,4459.4,0.51]
[1757631449544,0.117,4459.5,4459.4,0.7249]
[1757631449743,0.349,4459.5,4459.4,0.7249]
[1757631450044,1.1587,4459.5,4459.1,0.3003]
[1757631450245,0.6926,4459.2,4459.1,0.4949]
[1757631450547,0.9246,4459.2,4459.1,0.7098]
[1757631452544,0.9246,4459.2,4459.1,0.4949]
[1757631452750,0.9246,4459.2,4458.6,0.3003]
[1757631452948,0.8096,4459.0,4458.9,0.4949]
[1757631453346,0.6926,4459.0,4458.9,0.4949]
[1757631454848,0.8096,4459.0,4458.9,0.4949]
[1757631455551,0.9267,4459.0,4458.9,0.1946]
[1757631456052,0.9267,4459.0,4458.9,0.22541798]
[1757631456254,0.9267,4459.0,4458.9,0.03081798]
[1757631458352,0.1587,4459.2,4459.0,0.117]
[1757631458552,0.601,4459.0,4458.0,0.1167]
[1757631458748,0.4006,4458.1,4458.0,0.5262]
[1757631458945,0.6316,4458.1,4458.0,0.5262]
[1757631460654,0.6316,4458.1,4458.0,0.8265]
[1757631464247,0.832,4458.1,4458.0,0.8265]
[1757631464853,0.4006,4457.7,4457.6,0.7098]
[1757631465053,0.6316,4457.7,4457.6,0.7098]
[1757631465559,0.231,4457.7,4457.6,0.7098]
[1757631466858,3.2078,4458.5,4458.4,0.4095]
[1757631467052,0.231,4458.5,4458.4,0.7098]
[1757631470758,0.231,4458.5,4458.4,3.9176]
[1757631473956,0.231,4458.5,4458.4,0.7098]
[1757631482458,3.4388,4458.5,4458.4,0.4949]
[1757631483059,3.4388,4458.5,4458.4,0.8389]
[1757631483666,3.2078,4458.5,4458.4,0.8389]
[1757631483869,3.4378,4458.5,4458.4,0.8389]
[1757631486266,3.92797988,4458.5,4458.4,0.8389]
[1757631488262,0.72017988,4458.5,4458.4,0.8389]
[1757631489369,0.3404,4458.1,4458.0,0.3341]
[1757631489562,0.5704,4458.1,4458.0,0.1965]
[1757631489763,0.5704,4458.1,4457.5,0.1167]
[1757631491071,0.5704,4458.1,4458.0,0.1965]
[1757631491265,0.89236201,4458.1,4458.0,0.5306]
[1757631491465,0.89236201,4458.1,4458.0,1.051]
[1757631492974,0.89236201,4458.1,4458.0,1.395]
[1757631494273,0.72216201,4458.1,4458.0,1.395]
[1757631495172,0.23,4458.1,4458.0,1.395]
[1757631495468,32.5803,4458.9,4458.8,0.6781]
[1757631495673,33.49098095,4458.9,4458.8,0.6781]
[1757631495876,33.49098095,4458.9,4458.8,1.1985]
[1757631496075,33.76328095,4458.9,4458.8,1.1985]
[1757631498569,33.58096333,4458.9,4458.8,1.1985]
[1757631504283,1.27296333,4458.9,4458.8,1.1985]
[1757631505585,1.27196333,4458.9,4458.8,1.1985]
[1757631505881,0.99966333,4458.9,4458.8,1.1985]
[1757631506077,0.77066333,4458.9,4458.8,1.1985]
[1757631506276,0.72736333,4458.9,4458.8,1.1985]
[1757631506883,0.49836333,4458.9,4458.8,1.1985]
[1757631507085,0.229,4458.9,4458.8,5.1985]
[1757631507978,0.4848,4458.9,4458.8,1.1985]
[1757631508187,0.7406,4458.9,4458.8,1.1985]
[1757631510591,0.229,4458.9,4458.8,1.1985]
[1757631513895,0.7406,4458.9,4458.8,1.1985]
[1757631514593,0.4848,4458.9,4458.8,1.1985]
[1757631515191,0.7406,4458.9,4458.8,0.5204]
[1757631515391,0.7406,4458.9,4458.8,0.8579]
[1757631515791,0.9005,4458.9,4458.8,0.8579]
[1757631515997,0.9005,4458.9,4458.8,0.5204]
[1757631516692,0.7406,4458.9,4458.8,0.5204]
[1757631516898,0.7406,4458.9,4458.8,0.8579]
[1757631518484,1.25265025,4458.9,4458.8,0.8579]
[1757631518697,1.41255025,4458.9,4458.8,0.5204]
[1757631520292,1.41261429,4458.9,4458.8,0.5204]
[1757631520493,1.25271429,4458.9,4458.8,0.8579]
[1757631521001,1.43617058,4458.9,4458.8,0.8579]
[1757631523004,0.74111429,4458.9,4458.8,1.1773]
[1757631524405,0.99691429,4458.9,4458.8,1.1773]
[1757631525197,1.25271429,4458.9,4458.8,1.1773]
[1757631529002,1.42839008,4458.9,4458.8,1.1773]
[1757631536698,0.4764,4458.8,4458.0,0.1965]
[1757631536903,0.8073,4458.1,4458.0,0.7228]
[1757631537106,1.0363,4458.1,4458.0,0.7228]
[1757631538103,0.5599,4458.1,4458.0,0.7228]
[1757631538701,1.4173,4458.1,4458.0,0.7228]
[1757631538911,1.4173,4458.1,4458.0,1.2176]
[1757631539912,0.8958,4458.1,4458.0,1.2176]
[1757631540204,0.229,4458.1,4458.0,1.2176]
[1757631540404,3.2078,4458.4,4458.3,0.6429]
[1757631540610,3.96390624,4458.4,4458.3,1.1377]
[1757631541911,5.15360624,4458.4,4458.3,1.1377]
[1757631542906,5.15360624,4458.4,4458.3,0.8192]
[1757631543401,5.15360624,4458.4,4458.1,0.4948]
[1757631543711,1.1897,4458.2,4458.1,0.8192]
[1757631543908,1.71680624,4458.2,4458.1,1.1377]
[1757631546914,1.71680624,4458.2,4458.1,0.8192]
[1757631547218,1.71680624,4458.2,4458.1,0.4948]
[1757631547807,1.71680624,4458.2,4458.1,1.1377]
[1757631548004,0.52710624,4458.2,4458.1,1.1377]
[1757631548209,0.229,4458.2,4458.1,1.1377]
[1757631552021,3.7293,4458.9,4458.1,0.6429]
[1757631552318,1.08928471,4458.8,4458.7,0.6429]
[1757631552519,1.94668471,4458.8,4458.7,1.1377]
[1757631554118,1.94668471,4458.8,4458.7,0.8192]
[1757631554419,1.94668471,4458.8,4458.7,1.1377]
[1757631557318,1.94668471,4458.8,4458.7,0.8192]
[1757631557720,1.94668471,4458.8,4458.1,0.4948]
[1757631557919,0.3323,4458.2,4458.1,1.1377]
[1757631558120,0.5613,4458.2,4458.1,1.1377]
[1757631558621,1.0828,4458.2,4458.1,1.1377]
[1757631558917,1.4187,4458.2,4458.1,1.1377]
[1757631562823,1.4187,4458.2,4458.1,0.8192]
[1757631563020,1.4187,4458.2,4458.1,0.4948]
[1757631563424,1.95488735,4458.2,4458.1,0.4948]
[1757631564128,1.95488735,4458.2,4457.8,0.4948]
[1757631564426,1.1897,4457.9,4457.8,0.8192]
[1757631566026,1.1897,4457.9,4457.8,1.1377]
[1757631566631,1.4187,4457.9,4457.8,1.1377]
[1757631567326,0.8972,4457.9,4457.8,1.1377]
[1757631567522,1.4187,4457.9,4457.8,1.1377]
[1757631567726,1.43343553,4457.9,4457.8,1.1377]
[1757631567921,1.43343553,4457.9,4457.8,0.8192]
[1757631571228,1.43343553,4457.9,4457.5,0.1167]
[1757631571430,1.43343553,4457.9,4457.6,0.4867]
[1757631571825,0.01473553,4457.8,4457.7,0.3198]
[1757631572027,1.12203553,4457.8,4457.7,0.8065]
[1757631573137,4.32983553,4457.8,4457.7,0.8065]
[1757631573925,4.32983553,4457.8,4457.4,0.4867]
[1757631573926,4.86912435,4457.8,4457.4,0.4867]
[1757631574128,0.3126,4457.3,4457.2,1.1269]
[1757631574330,0.5416,4457.3,4457.2,1.1269]
[1757631574935,0.55633553,4457.3,4457.2,1.1269]
[1757631575431,1.03553553,4457.3,4457.2,1.1269]
[1757631576633,0.24373553,4457.3,4457.2,1.1269]
[1757631580943,1.03553553,4457.3,4457.2,1.1269]
[1757631581341,1.35103553,4457.3,4457.2,1.1269]
[1757631583638,1.12203553,4457.3,4457.2,1.1269]
[1757631583839,1.35103553,4457.3,4457.2,1.1269]
[1757631584241,0.01473553,4457.3,4457.2,1.1269]
[1757631584442,1.12203553,4457.3,4457.2,1.1269]
[1757631587743,1.12203553,4457.3,4457.2,0.8065]
[1757631588148,1.12203553,4457.3,4457.2,1.1269]
[1757631595066,1.66719231,4457.3,4457.2,1.1269]
[1757631595570,1.66719231,4457.3,4457.2,0.8065]
[1757631597168,4.87499231,4457.3,4456.6,0.4867]
[1757631597365,4.87499231,4457.3,4456.6,1.1269]
[1757631597366,1.1073,4456.7,4456.6,1.1269]
[1757631597572,1.3363,4456.7,4456.6,1.1269]
[1757631598070,1.35103553,4456.7,4456.6,1.1269]
[1757631598470,1.35103553,4456.7,4456.6,0.8043]
[1757631600267,1.35103553,4456.7,4455.6,0.4672]
[1757631600268,0.5007,4456.6,4455.6,0.4672]
[1757631600470,3.8667,4456.3,4456.2,0.7848]
[1757631600670,4.41164623,4456.3,4456.2,0.7848]
[1757631600867,0.55968176,4456.3,4456.2,1.1083]
[1757631601169,1.40333553,4456.3,4456.2,1.1083]
[1757631601367,1.94806127,4456.3,4456.2,1.1083]
[1757631602366,1.40333553,4456.3,4456.2,1.1083]
[1757631603168,0.01473553,4456.3,4456.2,1.1083]
[1757631603372,0.24373553,4456.3,4456.2,1.1083]
[1757631603573,0.01473553,4456.3,4456.2,1.1083]
[1757631603882,3.4368,4456.8,4456.7,1.1083]
[1757631604467,32.321,4457.3,4457.2,1.1083]
[1757631605379,1.71045485,4458.8,4457.3,2.245]
[1757631605678,0.5007,4459.1,4458.3,3.2078]
[1757631605869,0.1824,4460.0,4458.9,3.2078]
[1757631606170,0.1824,4460.0,4459.9,3.2078]
[1757631606380,0.8413,4460.0,4459.9,3.2078]
[1757631606672,0.3356,4459.2,4459.1,3.2078]
[1757631607071,0.3356,4459.2,4459.1,3.4378]
[1757631607876,0.8363,4459.2,4459.1,3.71885284]
[1757631608271,0.8363,4459.2,4459.1,3.79109749]
[1757631608575,0.8363,4459.2,4459.1,4.02109749]
[1757631610676,0.8363,4459.2,4459.1,3.79109749]
[1757631611074,1.1596,4459.2,4459.1,4.02109749]
[1757631611682,0.5007,4459.2,4459.1,4.02109749]
[1757631613075,0.5007,4459.4,4459.1,8.02109749]
[1757631613385,0.5007,4459.4,4459.2,0.58329749]
[1757631613679,0.8363,4459.4,4459.3,0.81329749]
[1757631614183,1.1596,4459.4,4459.3,0.81329749]
[1757631615879,0.5007,4459.4,4459.3,0.81329749]
[1757631616474,0.6831,4459.5,4459.3,0.81329749]
[1757631616682,0.1824,4459.5,4459.4,4.81329749]
[1757631617386,0.6831,4459.5,4459.4,4.81329749]
[1757631617788,0.6831,4459.5,4459.4,0.58329749]
[1757631618085,0.6831,4459.5,4459.4,0.81329749]
[1757631619188,0.6831,4459.5,4459.4,4.81329749]
[1757631620587,0.6831,4459.5,4459.4,4.51105284]
[1757631621088,0.6831,4459.5,4459.4,45.31105284]
[1757631621776,0.6831,4459.5,4459.4,45.08105284]
[1757631621975,0.6831,4459.5,4459.4,45.31105284]
[1757631622586,0.6831,4459.5,4459.4,45.08105284]
[1757631622887,0.6831,4459.5,4459.4,45.31105284]
[1757631625088,0.6831,4459.5,4459.4,41.08105284]
[1757631625285,1.342,4459.5,4459.4,0.28105284]
[1757631630284,5.342,4459.5,4459.4,0.28105284]
[1757631633992,1.342,4459.5,4459.4,0.28105284]
[1757631634188,1.342,4459.5,4459.4,0.28946356]
[1757631635981,1.342,4459.5,4459.4,0.51946356]
[1757631639579,1.342,4459.5,4459.4,0.28946356]
[1757631641692,0.4965,4459.4,4459.1,3.2078]
[1757631641893,0.6656,4459.2,4459.1,3.2078]
[1757631642187,1.1621,4459.2,4459.1,3.2078]
[1757631649695,0.4965,4459.2,4459.1,3.4368]
[1757631652983,0.1824,4459.5,4459.1,3.4368]
[1757631652984,0.1824,4459.5,4459.1,8.62004616]
[1757631653190,0.4965,4459.4,4459.3,1.18324616]
[1757631653389,0.4965,4459.4,4459.3,0.229]
[1757631658001,0.8293,4459.4,4459.3,0.229]
[1757631658499,0.4613,4459.3,4459.2,40.8]
[1757631658691,0.4613,4459.3,4459.2,41.029]
[1757631660301,0.4613,4459.3,4459.2,40.8]
[1757631660490,0.4613,4459.3,4459.2,41.029]
[1757631661104,0.4613,4459.3,4459.2,45.029]
[1757631663696,0.1824,4459.5,4459.2,45.029]
[1757631664098,0.6437,4459.5,4459.3,4.0]
[1757631664405,0.1824,4459.5,4459.4,0.229]
[1757631664901,0.1824,4459.5,4459.4,45.029]
[1757631665097,0.4613,4459.8,4459.4,45.029]
[1757631665405,0.1824,4460.0,4459.7,3.2078]
[1757631665601,0.4613,4459.9,4459.8,0.229]
[1757631666299,0.4613,4459.9,4459.8,4.229]
[1757631666600,0.4613,4460.6,4459.8,4.85667]
[1757631666797,0.6437,4460.5,4460.4,3.2078]
[1757631667108,0.6437,4460.5,4460.4,3.4368]
[1757631667403,0.1824,4460.5,4460.4,7.4368]
[1757631667797,0.6437,4460.5,4460.4,48.0078]
[1757631667999,0.6437,4460.5,4460.4,48.2368]
[1757631668998,0.6437,4460.5,4460.4,48.0078]
[1757631669298,0.6437,4460.5,4460.4,48.2368]
[1757631671002,0.6437,4460.5,4460.4,44.2368]
[1757631671299,0.6437,4460.5,4460.4,44.0078]
[1757631671601,0.6437,4460.5,4460.4,44.2368]
[1757631672104,0.6437,4460.5,4460.4,44.0078]
[1757631672300,0.6437,4460.5,4460.4,44.2368]
[1757631672504,1.2702,4460.5,4460.4,3.4368]
[1757631673203,1.2702,4460.5,4460.4,3.2078]
[1757631673503,1.2702,4460.5,4460.4,3.4368]
[1757631675406,1.2702,4460.5,4460.4,3.2078]
[1757631675606,1.2702,4460.5,4460.4,3.4368]
[1757631677005,0.9635,4460.5,4460.4,3.4368]
[1757631678101,0.6437,4460.5,4460.4,3.4368]
[1757631678304,0.9635,4460.5,4460.4,3.4368]
[1757631678805,1.2702,4460.5,4460.4,3.4368]
[1757631681201,0.9635,4460.5,4460.4,3.4368]
[1757631681707,0.6437,4460.5,4460.4,3.4368]
[1757631682803,0.6437,4460.5,4460.4,7.4368]
[1757631683200,0.6437,4460.5,4460.4,48.2368]
[1757631683510,0.1824,4460.5,4460.4,48.2368]
[1757631683801,0.4613,4460.9,4460.4,48.2368]
[1757631683999,0.4613,4460.9,4460.4,44.6402]
[1757631684196,0.4613,4460.9,4460.4,44.2368]
[1757631684701,0.1824,4461.0,4460.4,44.2368]
[1757631684904,0.6437,4461.0,4460.9,3.2078]
[1757631685108,0.6437,4461.0,4460.9,3.4368]
[1757631685703,1.2702,4461.0,4460.9,3.2078]
[1757631685906,1.2702,4461.0,4460.9,3.4368]
[1757631686107,1.2702,4461.0,4460.9,3.2078]
[1757631686309,1.2702,4461.0,4460.9,4.6258808]
[1757631687302,1.2702,4461.0,4460.9,3.4368]
[1757631690915,1.2702,4461.0,4460.9,3.2078]
[1757631691213,1.2702,4461.0,4460.9,4.62642564]
[1757631691512,1.2702,4461.0,4460.9,3.4368]
[1757631692309,1.2702,4461.0,4460.9,3.2078]
[1757631692502,1.2702,4461.0,4460.9,3.4368]
[1757631701316,5.2702,4461.0,4460.9,3.2078]
[1757631701516,1.1346,4460.4,4460.3,3.2078]
[1757631701716,1.1346,4460.4,4459.8,35.5078]
[1757631701920,0.4847,4459.9,4459.8,3.2078]
[1757631702110,1.1346,4459.9,4459.8,3.4368]
[1757631707016,0.4847,4459.9,4459.8,3.4368]
[1757631707420,0.1951,4460.0,4459.8,3.4368]
[1757631707624,0.4847,4459.9,4459.8,3.4368]
[1757631712221,1.1346,4459.9,4459.8,3.2078]
[1757631712421,1.1346,4459.9,4459.8,3.4368]
[1757631713825,0.1951,4460.5,4459.8,3.4368]
[1757631714026,0.1951,4460.0,4459.8,0.229]
[1757631714229,0.6798,4460.0,4459.9,3.2078]
[1757631714526,0.6798,4460.0,4459.9,44.2368]
[1757631715626,0.1951,4460.0,4459.9,44.2368]
[1757631716422,0.6798,4460.0,4459.9,44.2368]
[1757631717723,0.4617,4460.3,4459.9,44.2368]
[1757631717932,0.1951,4460.5,4459.9,44.2368]
[1757631718130,0.6568,4460.5,4460.4,3.2078]
[1757631718329,0.6568,4460.5,4460.4,3.4368]
[1757631720527,1.3027,4460.5,4460.4,3.4368]
[1757631721532,1.3027,4460.5,4460.4,3.2078]
[1757631721734,1.3027,4460.5,4460.4,3.4368]
[1757631726224,0.9932,4460.5,4460.4,3.4368]
[1757631728537,1.3027,4460.5,4460.4,3.4368]
[1757631729730,1.3027,4460.5,4460.4,3.2078]
[1757631729932,1.2935,4460.0,4459.9,3.2078]
[1757631731330,1.2935,4460.0,4459.9,3.4368]
[1757631731533,0.6476,4460.0,4459.9,3.4368]
[1757631734238,0.1951,4460.5,4459.9,3.4368]
[1757631734433,0.6568,4460.5,4460.4,3.2078]
[1757631734630,0.6568,4460.5,4460.4,3.4368]
[1757631738936,1.3027,4460.5,4460.4,3.2078]
[1757631739338,1.3027,4460.5,4460.4,3.4368]
[1757631740745,1.3027,4460.5,4460.4,3.2078]
[1757631741039,1.3027,4460.5,4460.4,3.4368]
[1757631741237,1.3027,4460.5,4459.2,42.38927795]
[1757631741238,0.8318,4460.0,4459.9,3.2078]
[1757631741442,1.2935,4460.0,4459.9,3.2078]
[1757631741843,1.2935,4460.0,4459.9,0.3234]
[1757631742244,1.2935,4460.0,4459.9,0.636]
[1757631742841,0.1859,4459.5,4459.4,3.2078]
[1757631743043,0.984,4459.5,4459.4,4.0728]
[1757631743246,1.2935,4459.5,4459.4,4.0728]
[1757631743744,1.2935,4459.5,4459.4,4.5218]
[1757631743940,0.4617,4459.5,4459.4,4.5218]
[1757631747552,0.7923,4459.5,4459.4,4.5218]
[1757631749056,0.1859,4460.0,4459.5,0.4407]
[1757631749248,0.8365,4460.0,4459.9,0.3133]
[1757631749450,0.8365,4460.0,4459.9,0.5423]
[1757631749649,1.2933,4460.0,4459.9,0.5423]
[1757631750252,1.2933,4460.0,4459.9,0.229]
[1757631751755,1.2933,4460.0,4459.9,0.5423]
[1757631756864,1.2933,4460.0,4459.9,0.229]
[1757631758961,1.2933,4460.0,4459.4,3.2078]
[1757631758962,1.2907,4459.5,4459.4,3.2078]
[1757631765058,0.1833,4459.0,4458.9,3.2078]
[1757631765260,0.8339,4458.5,4458.4,3.5211]
[1757631765466,1.2907,4458.5,4458.4,3.7501]
[1757631765662,1.2907,4458.5,4458.4,4.0593]
[1757631765863,1.2907,4458.5,4458.4,4.5]
[1757631766271,0.4568,4458.5,4458.4,4.5]
[1757631768672,0.7874,4458.5,4458.4,4.5]
[1757631770671,0.7874,4458.5,4458.4,4.80429542]
[1757631772773,0.4568,4459.4,4458.9,0.6225]
[1757631773071,1.1074,4459.4,4459.3,0.6225]
[1757631773274,1.1074,4459.4,4459.3,0.92679542]
[1757631774072,1.1074,4459.4,4459.3,0.61759542]
[1757631778877,1.1074,4459.4,4459.3,0.30429542]
[1757631779778,1.1074,4459.4,4459.3,0.60959542]
[1757631780173,1.1074,4459.4,4459.3,0.93779542]
[1757631780376,0.7874,4459.4,4459.3,1.36189542]
[1757631780678,0.4568,4459.4,4459.3,1.36189542]
[1757631781275,0.7804,4459.4,4459.3,1.36189542]
[1757631781576,0.4567,4459.9,4459.4,0.4241]
[1757631781777,0.4567,4459.9,4459.8,0.6335]
[1757631782073,0.4567,4459.9,4459.8,1.36189542]
[1757631783374,0.4567,4459.9,4459.8,1.36188484]
[1757631783676,0.4123,4460.5,4460.2,0.4241]
[1757631783677,0.4567,4460.4,4460.2,0.4241]
[1757631783878,0.3236,4460.8,4460.7,1.0576]
[1757631784079,0.3236,4460.8,4460.7,1.36188484]
[1757631784382,0.7803,4460.8,4460.7,1.36188484]
[1757631784582,1.29504949,4460.8,4460.7,1.36188484]
[1757631785281,1.60224949,4460.8,4460.7,0.93778484]
[1757631786182,1.60204842,4460.8,4460.7,0.93778484]
[1757631786680,1.60204842,4460.8,4460.7,0.30428484]
[1757631786681,4.80984842,4460.8,4460.7,0.30428484]
[1757631787273,4.80984842,4460.8,4460.7,0.30413048]
[1757631788680,8.80984842,4460.8,4460.7,3.048e-05]
[1757631789383,8.80984842,4460.8,4459.8,0.4611]
[1757631789579,0.7803,4459.9,4459.8,1.0946]
[1757631790670,0.4567,4460.4,4459.8,0.6335]
[1757631790882,0.7803,4460.4,4460.3,1.0946]
[1757631791081,1.0875,4460.4,4460.3,0.6335]
[1757631791483,1.0875,4460.4,4460.0,0.4611]
[1757631792683,0.6308,4460.4,4459.7,0.6901]
[1757631792883,0.4567,4460.3,4459.7,0.6901]
[1757631793085,0.3236,4459.8,4459.7,1.3236]
[1757631793384,0.7803,4459.8,4459.7,1.3236]
[1757631793584,1.0875,4459.8,4459.7,1.3236]
[1757631793886,0.4567,4459.7,4459.4,0.6901]
[1757631794178,1.2827,4459.5,4459.0,3.2078]
[1757631794384,0.4567,4459.4,4459.0,3.8979]
[1757631794575,1.0875,4459.1,4459.0,3.5131]
[1757631794884,1.0875,4459.1,4459.0,0.3053]
[1757631795286,1.0875,4458.8,4458.7,0.3053]
[1757631796382,1.0875,4458.8,4458.7,1.0946]
[1757631796777,1.0875,4458.8,4458.7,0.6335]
[1757631798080,1.0875,4458.8,4458.7,1.0946]
[1757631798474,1.0875,4458.8,4458.7,0.6335]
[1757631798679,1.0875,4458.8,4458.7,0.3053]
[1757631799082,1.0875,4458.8,4458.4,3.2078]
[1757631799384,0.1952,4459.0,4458.4,3.5131]
[1757631799385,1.2827,4458.5,4458.4,3.5131]
[1757631799580,1.2827,4458.5,4458.4,3.9742]
[1757631799788,1.0875,4458.5,4458.4,4.3024]
[1757631799981,0.7803,4459.0,4458.9,1.0946]
[1757631800183,0.4567,4459.3,4458.9,0.6335]
[1757631800381,0.7803,4459.3,4459.2,1.0946]
[1757631800784,0.7803,4459.3,4459.2,1.3991748]
[1757631800984,1.0875,4459.3,4459.2,1.3991748]
[1757631804293,1.0875,4459.3,4459.2,0.3045748]
[1757631809097,5.0875,4459.3,4459.2,0.3045748]
[1757631809393,1.2612,4458.5,4458.4,3.2078]
[1757631809582,1.2612,4458.5,4458.4,3.9825]
[1757631810190,1.2612,4458.5,4458.4,0.7747]
[1757631811196,1.2612,4458.5,4458.4,0.3081]
[1757631811698,1.0716,4458.5,4458.4,1.0971]
[1757631812693,1.0716,4458.5,4458.4,0.3081]
[1757631812694,1.2612,4458.5,4458.4,0.3081]
[1757631813694,1.2612,4458.5,4458.4,0.7747]
[1757631815896,1.2612,4458.5,4458.1,0.4666]
[1757631816200,1.0716,4458.0,4457.9,3.8383]
[1757631816397,1.2612,4458.0,4457.9,3.8383]
[1757631816701,1.2612,4458.0,4457.9,3.5159]
[1757631817793,1.2612,4458.0,4457.7,0.4666]
[1757631819206,1.2612,4458.0,4457.4,1.0971]
[1757631819207,0.629,4457.5,4457.4,1.0971]
[1757631819401,1.0716,4457.5,4457.4,1.0971]
[1757631819597,0.4426,4457.8,4457.4,1.0971]
[1757631819799,0.9794,4457.8,4457.7,1.0971]
[1757631820301,1.2916,4457.8,4457.7,1.0971]
[1757631821302,1.2916,4457.8,4457.7,0.7747]
[1757631822794,1.2916,4457.8,4457.7,0.3081]
[1757631823001,1.2916,4457.8,4457.4,0.4666]
[1757631823200,1.2612,4457.5,4457.4,1.0971]
[1757631823403,1.0716,4457.0,4456.9,1.0971]
[1757631826901,1.2612,4457.0,4456.9,1.0971]
[1757631828097,1.2612,4457.0,4456.2,0.229]
[1757631828098,1.0716,4456.3,4456.2,0.7747]
[1757631828907,1.0716,4456.3,4456.2,1.0971]
[1757631838019,1.0716,4456.3,4455.5,0.4149]
[1757631838320,0.624,4455.7,4455.6,1.0764]
[1757631838517,1.0874,4455.7,4455.6,1.0764]
[1757631840315,0.3125,4455.7,4455.6,1.0764]
[1757631840509,0.4634,4456.5,4456.1,0.6068]
[1757631840713,3.4368,4456.6,4456.2,0.4696]
[1757631840915,0.7759,4456.5,4456.4,1.0764]
[1757631841118,1.0874,4456.5,4456.4,1.0764]
[1757631842521,1.50199,4456.5,4455.6,0.4696]
[1757631842821,1.2776,4456.5,4455.6,0.4696]
[1757631843020,0.7759,4455.7,4455.6,1.0764]
[1757631844125,0.3125,4455.7,4455.6,1.0764]
[1757631844314,0.3125,4455.8,4455.7,1.0764]
[1757631844620,0.7759,4455.8,4455.7,1.0764]
[1757631846617,1.0874,4455.8,4455.7,1.0764]
[1757631846816,3.2078,4456.0,4455.7,1.0764]
[1757631847017,3.4368,4456.0,4455.8,0.4696]
[1757631847222,0.3125,4455.9,4455.8,1.0764]
[1757631847712,3.4368,4456.0,4455.8,1.0764]
[1757631847912,3.7493,4456.0,4455.9,1.0764]
[1757631848114,4.2127,4456.0,4455.9,1.0764]
[1757631848510,4.5242,4456.0,4455.9,1.0764]
[1757631849223,4.7144,4456.0,4455.6,0.4696]
[1757631849617,4.7144,4456.0,4455.5,0.1859]
[1757631850017,4.7144,4456.0,4455.6,0.4696]
[1757631850213,4.251,4456.0,4455.9,0.3171]
[1757631850623,4.251,4456.0,4455.3,0.4696]
[1757631850818,1.0874,4455.9,4455.8,0.3171]
[1757631851126,1.0874,4455.9,4455.8,0.7867]
[1757631851828,0.5415,4455.9,4455.8,1.0764]
[1757631852822,1.3164,4455.9,4455.8,1.0764]
[1757631853823,1.3164,4455.9,4455.8,0.7867]
[1757631854523,1.3164,4455.9,4455.2,3.2078]
[1757631854723,0.3125,4455.4,4455.3,1.0764]
[1757631855023,0.7759,4455.4,4455.3,1.0764]
[1757631858243,0.3125,4455.4,4455.3,1.0764]